Workbook

Sheet Standard
D1: Piano di Lottizzazione zone «C»
I4: Indice Territoriale, it = | J4: 0.9 | K4: m3/m2
I6: Superficie territoriale, St = | J6: 35000 | K6: m2 | M6: Comune | N6: Classe II - Comuni da 10.000 a 20.000 abitanti;
I8: VReep = | J8: 0.4
P11: =CONCATENATE("VReep = ", FIXED(J8)," ∙ VR = ",FIXED(J8)," x ",FIXED(K12)," =") -> VReep = 0.40 ∙ VR = 0.40 x 22,050.00 = | Q11: =ROUND(J8*K12,2) -> 8820 | R11: m3 | T11: →
J12: =CONCATENATE("VR = 70% ∙ V = 70% x ",E15," =") -> VR = 70% ∙ V = 70% x 31500 = | K12: =E15*0.7 -> 22050 | L12: m3
P13: =CONCATENATE("VRlib = (1-", J8,")∙VR = (1-",J8,") x ",K12," =") -> VRlib = (1-0.4)∙VR = (1-0.4) x 22050 = | Q13: =K12*(1-J8) -> 13230 | R13: m3 | T13: → | X13: 5
V14: 10530
D15: =CONCATENATE("V = St∙it =",J6," x ",J4," =") -> V = St∙it =35000 x 0.9 = | E15: =J6*J4 -> 31500 | F15: m3 | J15: =CONCATENATE("VS = 20% ∙ V = 20% x ",E15," =") -> VS = 20% ∙ V = 20% x 31500 = | K15: =E15*0.2 -> 6300 | L15: m3 | V15: 21912
V16: 5228
V17: =SUM(V14:V16) -> 37670
J18: =CONCATENATE("VSp = 10% ∙ V = 10% x ",E15," =") -> VSp = 10% ∙ V = 10% x 31500 = | K18: =E15*0.1 -> 3150 | L18: m3 | P18: ∙ | V18: 5380
V19: 2199
P20: =CONCATENATE("S1 = ",FIXED(J79)," ∙ n°ab = ",FIXED(J79)," x ",FIXED(F22,0)," =") -> S1 = 4.50 ∙ n°ab = 4.50 x 315 = | Q20: =J79*F22 -> 1417.5 | R20: m² | V20: =SUM(V14:V19) -> 82919
P21: =CONCATENATE("S2 = ",FIXED(K79)," ∙ n°ab = ",FIXED(K79)," x ",FIXED(F22)," =") -> S2 = 2.00 ∙ n°ab = 2.00 x 315.00 = | Q21: =K79*F22 -> 630 | R21: m² | V21: =J6-V20 -> -47919
E22: =CONCATENATE(" n° ab = V/100 = ",FIXED(E15)," / 100 =") -> n° ab = V/100 = 31,500.00 / 100 = | F22: =ROUND(E15/100,0) -> 315 | J22: =CONCATENATE("S =",FIXED(I79,0),"m²/ab ∙ n°ab =",FIXED(I79,0)," x ",F22," =") -> S =18m²/ab ∙ n°ab =18 x 315 = | K22: =I79*F22 -> 5670 | L22: m2 | P22: =CONCATENATE("S3 = ",FIXED(L79)," ∙ n°ab = ",FIXED(L79)," x ",FIXED(F22)," =") -> S3 = 9.00 ∙ n°ab = 9.00 x 315.00 = | Q22: =L79*F22 -> 2835 | R22: m²
P23: =CONCATENATE("S4 = ",FIXED(M79)," ∙ n°ab = ",FIXED(M79)," x ",FIXED(F22)," =") -> S4 = 2.50 ∙ n°ab = 2.50 x 315.00 = | Q23: =M79*F22 -> 787.5 | R23: m²
P25: =CONCATENATE("Superfici Viabilità → Sv = ",FIXED(I81),"%∙ St = ",FIXED(I81),"% x ",FIXED(J6)," = ") -> Superfici Viabilità → Sv = 15.00%∙ St = 15.00% x 35,000.00 = | Q25: =J6*I81/100 -> 5250 | R25: m²
P27: =CONCATENATE("Superficie fondiaria edilizia residenziale → Sf = St - (S1+S2+S3+S4+Sv) = ",FIXED(J6),"-(",FIXED(Q20),"+",FIXED(Q21),"+",FIXED(Q22),"+",FIXED(Q23),"+",FIXED(Q23),") = ") -> Superficie fondiaria edilizia residenziale → Sf = St - (S1+S2+S3+S4+Sv) = 35,000.00-(1,417.50+630.00+2,835.00+787.50+787.50) = | Q27: =J6-SUM(Q20:Q25) -> 24080 | R27: m²
P29: =CONCATENATE("indice fonfiario → if = VR/Sf = ",FIXED(K12),"/",FIXED(Q27)," = ") -> indice fonfiario → if = VR/Sf = 22,050.00/24,080.00 = | Q29: =K12/Q27 -> 0.9156976744 | R29: m³/m² | W29: n° piani | Y29: H | Z29: SAL
Y30: m | Z30: m²
P31: =CONCATENATE("1. Case in Linea → Sf₁ = Vreep / if = ",FIXED(Q11)," / ",FIXED(Q29)," = ") -> 1. Case in Linea → Sf₁ = Vreep / if = 8,820.00 / 0.92 = | Q31: =Q11/Q29 -> 9632 | R31: m² | X31: 5 | Y31: =2.7+3*(X31-1) -> 14.7 | Z31: =Q11/Y31 -> 600
E32: Tipologie Edilizie Residenziali | P32: =CONCATENATE("2. Case a schiera → Sf₂ = (VRlib∙",FIXED(I82),"%)/if = (",FIXED(Q13),"x",FIXED(I82),"% ) / ",FIXED(Q29)," = ") -> 2. Case a schiera → Sf₂ = (VRlib∙43.00%)/if = (13,230.00x43.00% ) / 0.92 = | Q32: =Q13*I82/100/Q29 -> 6212.64 | R32: m² | X32: 2 | Y32: =2.7+3*(X32-1) -> 5.7 | Z32: =Q12/Y32 -> 0
P33: =CONCATENATE("3. Case Unifamiliari isolate → Sf₃ = (VReep∙",,FIXED(I83),"% )/if = (",FIXED(Q13),"x",FIXED(I83),"%) / ",FIXED(Q29)," = ") -> 3. Case Unifamiliari isolate → Sf₃ = (VReep∙57.00% )/if = (13,230.00x57.00%) / 0.92 = | Q33: =Q13*I83/100/Q29 -> 8235.36 | R33: m²
L35: Art. 41-sexies L.1150/1942 → parcheggi pertinenziali 1m²/10³ → | P35: =CONCATENATE( "Sp = V / 10 = ",E15," / 10 =") -> Sp = V / 10 = 31500 / 10 = | Q35: =E15/10 -> 3150 | R35: m2
Q37: =CONCATENATE("n° stalli (S₃) = ",FIXED(Q23),"/(2,50x5,00) =") -> n° stalli (S₃) = 787.50/(2,50x5,00) = | R37: =Q23/(2.5*5) -> 63
Q38: =CONCATENATE("n° stalli (ar.41sexies) = ",FIXED(Q35),"/(2,50x5,00) =") -> n° stalli (ar.41sexies) = 3,150.00/(2,50x5,00) = | R38: =Q35/(2.5*5) -> 252
I41: =CONCATENATE( "n° piani = ",FIXED(I84,0), " → H₁ = ") -> n° piani = 3 → H₁ = | J41: =2.7+(I84-1)*3 -> 8.7 | K41: m | P41: =CONCATENATE("SAL₁ = Vreep / H₁ = ",FIXED(Q11),"/",FIXED(J41)," = ") -> SAL₁ = Vreep / H₁ = 8,820.00/8.70 = | Q41: =Q11/J41 -> 1013.793103 | R41: m² | W41: 1. Case in Linea
I43: =CONCATENATE( "n° piani = ",FIXED(I85,0), " → H₂ = ") -> n° piani = 2 → H₂ = | J43: =2.7+(I85-1)*3 -> 5.7 | K43: m | P43: =CONCATENATE("SC₂ = (Vreep∙",FIXED(I82),"%) / H₂ = ",FIXED(Q13),"x",FIXED(I82),"%)/",FIXED(J43)," = ") -> SC₂ = (Vreep∙43.00%) / H₂ = 13,230.00x43.00%)/5.70 = | Q43: =Q13*I82*10^-2/J43 -> 998.0526316 | R43: m² | W43: 2. Case a schiera
D45: Superfici coperte | I45: =CONCATENATE( "n° piani = ",FIXED(I87,0), " → H₃ = ") -> n° piani = 1 → H₃ = | J45: =2.7+(I86-1)*3 -> -0.3 | K45: m | P45: =CONCATENATE("SC₃ = (Vreep∙",FIXED(I84),"%) / H₃ = ",FIXED(Q13),"x",FIXED(I84),"%)/",FIXED(J45)," = ") -> SC₃ = (Vreep∙3.00%) / H₃ = 13,230.00x3.00%)/-0.30 = | Q45: =Q13*I83*10^-2/J45 -> -25137 | R45: m² | W45: 3. Case Unifamiliari isolate
I47: =CONCATENATE( "n° piani = ",FIXED(I88,0), " → H₄ = ") -> n° piani = 4 → H₄ = | J47: 11.5 | K47: m | P47: =CONCATENATE("SC₄ = VS / H₄ = ",FIXED(K15),"/",FIXED(J47)," = ") -> SC₄ = VS / H₄ = 6,300.00/11.50 = | Q47: =K15/J47 -> 547.826087 | R47: m² | W47: 4. Edifici non residenziali connessi con la residenza( negozi, bar, studi)
I49: =CONCATENATE( "n° piani = ",FIXED(I89,0), " → H₅ = ") -> n° piani = 1 → H₅ = | J49: 4 | K49: m | P49: =CONCATENATE("SC₅ = VS / H₅ = ",FIXED(K18),"/",FIXED(J49)," = ") -> SC₅ = VS / H₅ = 3,150.00/4.00 = | Q49: =K18/J49 -> 787.5 | R49: m² | W49: 5. Edifici pubblici
D53: Legenda
C55: it - | D55: indice territoriale
C56: A - | D56: Superficie Area da Lottizzare
C57: V - | D57: Volumetria realizzabile
C58: VR - | D58: Volumetria per residenza
C59: VReep - | D59: Volumetria per l' edilizia economica e popolare
C60: VRlib - | D60: Volumetria edilizia residenziale non vincolata
C61: VS - | D61: Volumetria per servizi connessi con la residenza(negozi, bar, studi)
C62: VSp - | D62: Volumetria per servizi pubblici;
C63: n,ab | D63: Numero abitanti insidiabili
C64: S1 - | D64: Aree per l’istruzione asili nido, scuole materne e scuole dell’obbligo;
C65: S2 - | D65: Aree per attrezzature di interesse comune religiose, culturali, sociali, assistenziali,
D66: sanitarie, amministrative, per pubblici servizi (uffici PT. protezione civile, ecc.) ed altre; | U66: 0.4
C67: S3 - | D67: Aree per spazi pubblici attrezzati a parco e per il gioco e lo sport effettivamente utilizzabili per tali impianti | U67: 0.45
D68: con esclusione d fasce verdi lungo le strade | U68: 0.5
C69: S4 - | D69: Aree per parcheggi pubblici. in aggiunta alla superficie a parcheggio prevista daIl’Art. 41 sexies Legge 17/08/42, n. 1150) | U69: 0.55
D70: tali aree, in casi speciali, potranno essere distribuite su diversi livelli: | U70: 0.6
C71: Sp - | D71: (Art. 41 sexies Legge 17/08/42, n. 1150) Nelle nuove costruzioni ed anche nelle aree di pertinenza delle costruzioni stesse, | U71: 0.65
D72: debbono essere riservati appositi spazi per parcheggi in misura non inferiore ad un metro quadrato per ogni dieci metri cubi di costruzione. | U72: 0.7
I74: m²/ab | J74: S1 | K74: S2 | L74: S3 | M74: S4
C75: 1 | D75: Classe I - Comuni con oltre 20.000 abitanti; | I75: 18 | J75: 4.5 | K75: 2 | L75: 9 | M75: 2.5
C76: 2 | D76: Classe II - Comuni da 10.000 a 20.000 abitanti; | I76: 18 | J76: 4.5 | K76: 2 | L76: 9 | M76: 2.5
C77: 3 | D77: Classe III - Comuni da 2.000 a 10.000 abitanti; | I77: 12 | J77: 4 | K77: 2 | L77: 5 | M77: 1
C78: 4 | D78: Classe IV - Comuni sino a 2.000 abitanti | I78: 12 | J78: 4 | K78: 2 | L78: 5 | M78: 1
D79: 2 | I79: =IF(OR(D79=1,D79=2),I75,I77) -> 18 | J79: =IF(OR(D79=1,D79=2),J75,J77) -> 4.5 | K79: =IF(OR(D79=1,D79=2),K75,K77) -> 2 | L79: =IF(OR(D79=1,D79=2),L75,L77) -> 9 | M79: =IF(OR(D79=1,D79=2),M75,M77) -> 2.5 | N79: =LOOKUP(D79,C75:C78,D75:D78) -> Classe II - Comuni da 10.000 a 20.000 abitanti;
H81: % sup. viabilità | I81: 15
H82: % vr2 | I82: 43
H83: % Vr3 | I83: =100-I82 -> 57
H84: tip.01 | I84: 3
H85: tip.02 | I85: 2
H86: tip.03 | I86: 0
H87: tip.04 | I87: 1
H88: tip.05 | I88: 4
H89: tip.06 | I89: 1

Sheet Volumi
B1: Dimostrazione Piano di Lottizzazione
A2: N° | B2: Tipologia | C2: Lotto | D2: Sf | E2: Sc | F2: Hv | G2: Vr | H2: Vs₁ | I2: Vs₂ | J2: if=V/Sf | K2: VR tip. 01 | L2: VR tip. 02 | M2: VR tip. 03 | N2: VR tip. 04
D3: m² | E3: m² | F3: m | G3: m³ | H3: m³ | I3: m³ | J3: m³/m² | K3: m³ | L3: m³ | M3: m³ | N3: m³
A4: 001 | B4: R₁ | C4: =IF(B4="","",CONCATENATE(B4," - ",A4)) -> R₁ - 001 | D4: 600 | E4: 120 | F4: 5.7 | G4: =IF(B4="","",IF(LEFT(B4,1)="R",E4*F4,"")) -> 684 | H4: =IF(LEFT(B4,2)=A46,D4*E4,"") ->  | I4: =IF(LEFT(B4,1)="S",E4*F4,"") ->  | J4: =IF(LEFT(B4,1)="R",G4/D4,IF(LEFT(B4,1)="S",I4/D4,"")) -> 1.14 | K4: =IF(LEFT(B4,2)=$A$42,G4,"") -> 684 | L4: =IF(LEFT(B4,2)=$A$43,G4,"") ->  | M4: =IF(LEFT(B4,2)=$A$44,G4,"") ->  | N4: =IF(LEFT(B4,2)=$A$45,G4,"") -> 
A5: 002 | B5: R₁ | C5: =IF(B5="","",CONCATENATE(B5," - ",A5)) -> R₁ - 002 | D5: 500 | E5: 100 | F5: 5.7 | G5: =IF(B5="","",IF(LEFT(B5,1)="R",E5*F5,"")) -> 570 | H5: =IF(LEFT(A5,1)="S",D5*E5,"") ->  | J5: =IF(LEFT(B5,1)="R",G5/D5,IF(LEFT(B5,1)="S",I5/D5,"")) -> 1.14 | K5: =IF(LEFT(B5,2)=$A$42,G5,"") -> 570 | L5: =IF(LEFT(B5,2)=$A$43,G5,"") ->  | M5: =IF(LEFT(B5,2)=$A$44,G5,"") -> 
A6: 003
A7: 004
A8: 005
A9: 006
A10: 007
A11: 008
A12: 009
A13: 010
A14: 011
A15: 012
A16: 013
A17: 014
A18: 015
A19: 016
A20: 017
A21: 018
A22: 019
A23: 020
A24: 021
A25: 022
A26: 023
A27: 024
A28: 025
A29: 026
A30: 027
A31: 028
A32: 029
A33: 030
A34: 031
A35: 032
G36: =SUM(G4:G35) -> 1254 | H36: =SUM(H4:H35) -> 0 | I36: =SUM(I4:I35) -> 0 | K36: =SUM(K4:K35) -> 1254 | L36: 0 | M36: 0 | N36: 0
B38: =IF(G36>Standard!K12,CONCATENATE("Totale Volume Residenziale in progetto → VR = ",FIXED(G36)," m³ > Volume Residensiale Standard = ",FIXED(Standard!K12),"m³"),CONCATENATE("Totale Volume Residenziale in progetto → VR = ",FIXED(G36)," m³ < Volume Residensiale Standard = ",FIXED(Standard!K12),"m³" )) -> Totale Volume Residenziale in progetto → VR = 1,254.00 m³ < Volume Residensiale Standard = 22,050.00m³
B39: =IF(H36+I36<Standard!K18,CONCATENATE("Totale Volume Servizi Pubblici in progetto → Vsp=Vs1+Vs2= ",FIXED(H36),"+",FIXED(I36)," = ",FIXED(H36+I36),"m³ < Volume Servizi Pubblici Standard = ",FIXED(Standard!K18),"m³"),CONCATENATE("Totale Volume Servizi Pubblici in progetto → Vsp=Vs1+Vs2 = ",FIXED(H36),"+",FIXED(I36)," = ",FIXED(H36+I36),"m³ > Volume Servizi Pubblici Standard = ",FIXED(Standard!K18),"m³")) -> Totale Volume Servizi Pubblici in progetto → Vsp=Vs1+Vs2= 0.00+0.00 = 0.00m³ < Volume Servizi Pubblici Standard = 3,150.00m³
B40: =IF(G36<Standard!K12,CONCATENATE("Totale Volume Servizi alla Residenza in progetto → VR = ",FIXED(N36)," m³ < Volume Servizi alla Residenza Standard = ",FIXED(Standard!K15),"m³"),CONCATENATE("Totale Volume Residenziale in progetto → VR = ",FIXED(N36)," m³ > Volume Residensiale Standard = ",FIXED(Standard!K15),"m³" )) -> Totale Volume Servizi alla Residenza in progetto → VR = 0.00 m³ < Volume Servizi alla Residenza Standard = 6,300.00m³
A42: R₁ | B42: edilizia economica e popolare
A43: R₂ | B43: edifici a schiera
A44: R₃ | B44: edifici unifamuliari isolati
A45: R₄ | B45: edifici connessi alla residenza (negozi, bar, studi etc….)
A46: S₁ | B46: edifici per l’istruzione (asili nido, scuole materne e scuole dell’obbligo)
A47: S₂ | B47: edifici d' interesse comune (edifici di culto, ambulatori, uffici PT. protezione civile, ecc.)

Sheet Superfici
B1: Dimostrazione Piano di Lottizzazione
A2: N° | B2: Tipologia | C2: Lotto | D2: Area | E2: L₁ | F2: L₂ | G2: L₃ | H2: L₄ | I2: S₁p | J2: S₂p | K2: S₃p | L2: S₄p | M2: S₅p
D3: m² | E3: m² | F3: m² | G3: m² | H3: m² | I3: m³/m² | J3: m³ | K3: m³ | L3: m³ | M3: m³
A4: 001 | B4: L₁ | C4: =IF(B4="","",CONCATENATE(B4," - ",A4)) -> L₁ - 001 | D4: 600 | E4: =IF(B4="","",IF(LEFT(B4,2)=$A$43,D4,"")) -> 600 | F4: =IF(B4="","",IF(LEFT(B4,2)=$A$44,D4,"")) ->  | G4: =IF(B4="","",IF(LEFT(B4,2)=$A$45,D4,"")) ->  | H4: =IF(B4="","",IF(LEFT(B4,2)=$A$46,D4,"")) ->  | I4: =IF(B4="","",IF(LEFT(B4,2)=$A$47,D4,"")) ->  | J4: =IF(B4="","",IF(LEFT(B4,2)=$A$48,D4,"")) ->  | K4: =IF(B4="","",IF(LEFT(B4,2)=$A$49,D4,"")) ->  | L4: =IF(B4="","",IF(LEFT(B4,2)=$A$50,D4,"")) ->  | M4: =IF(B4="","",IF(LEFT(B4,2)=$A$51,D4,"")) -> 
A5: 002 | B5: S₁ | C5: =IF(B5="","",CONCATENATE(B5," - ",A5)) -> S₁ - 002 | D5: 500 | E5: =IF(B5="","",IF(LEFT(B5,2)=$A$43,D5,"")) ->  | F5: =IF(B5="","",IF(LEFT(B5,2)=$A$44,D5,"")) ->  | G5: =IF(B5="","",IF(LEFT(B5,2)=$A$45,D5,"")) ->  | H5: =IF(B5="","",IF(LEFT(B5,2)=$A$46,D5,"")) ->  | I5: =IF(B5="","",IF(LEFT(B5,2)=$A$47,D5,"")) -> 500 | J5: =IF(B5="","",IF(LEFT(B5,2)=$A$48,D5,"")) ->  | K5: =IF(LEFT(B5,2)=$A$44,G5,"") ->  | L5: =IF(LEFT(B5,2)=$A$45,G5,"") ->  | M5: =IF(B4="","",IF(LEFT(B4,2)=$A$48,D4,"")) -> 
A6: 003 | B6: S₂ | C6: S₂ - 003 | D6: 200 | J6: 200
A7: 004 | B7: L₃ | C7: L₃ - 004 | D7: 450 | G7: 450 | L7: 450
A8: 005 | B8: L₃ | C8: L₃ - 005 | D8: 600 | G8: 600 | L8: 600
A9: 006
A10: 007
A11: 008
A12: 009
A13: 010
A14: 011
A15: 012
A16: 013
A17: 014
A18: 015
A19: 016
A20: 017
A21: 018 | K21: =IF(LEFT(B21,2)=$A$44,G21,"") -> 
A22: 019
A23: 020
A24: 021
A25: 022
A26: 023
A27: 024
A28: 025
A29: 026
A30: 027
A31: 028
A32: 029
A33: 030
A34: 031
A35: 032
E36: =SUM(E4:E35) -> 600 | F36: 0 | G36: 1050 | H36: 0 | I36: 500 | J36: 200 | K36: =SUM(K4:K35) -> 0 | L36: 1050 | M36: 0
B38: =IF(I36>Standard!Q20,CONCATENATE("Totale Area Servizi progetto → S₁p = ",FIXED(I36)," m² > Area Servizi standard S₁s = ",FIXED(Standard!Q20)," m²"),CONCATENATE("Totale Area Servizi progetto → S₁p = ",FIXED(I36)," m² < Area Servizi standard S₁s = ",FIXED(Standard!Q20)," m²")) -> Totale Area Servizi progetto → S₁p = 500.00 m² < Area Servizi standard S₁s = 1,417.50 m²
B39: =IF(J36>Standard!Q21,CONCATENATE("Totale Area Servizi progetto → S₂p = ",FIXED(J36)," m² > Area Servizi standard S₂s = ",FIXED(Standard!Q21)," m²"),CONCATENATE("Totale Area Servizi progetto → S₂p = ",FIXED(J36)," m² < Area Servizi standard S₂s = ",FIXED(Standard!Q21)," m²")) -> Totale Area Servizi progetto → S₂p = 200.00 m² < Area Servizi standard S₂s = 630.00 m²
B40: =IF(K36>Standard!Q22,CONCATENATE("Totale Area Servizi progetto → S₃p = ",FIXED(K36)," m² > Area Servizi standard S₃s = ",FIXED(Standard!Q22)," m²"),CONCATENATE("Totale Area Servizi progetto → S₃p = ",FIXED(K36)," m² < Area Servizi standard S₃s = ",FIXED(Standard!Q22)," m²")) -> Totale Area Servizi progetto → S₃p = 0.00 m² < Area Servizi standard S₃s = 2,835.00 m²
B41: =IF(L36>Standard!Q24,CONCATENATE("Totale Area Servizi progetto → S₄p = ",FIXED(L36)," m² > Area Servizi standard S₄s = ",FIXED(Standard!Q23)," m²"),CONCATENATE("Totale Area Servizi progetto → S₄p = ",FIXED(L36)," m² < Area Servizi standard S₄s = ",FIXED(Standard!Q24)," m²")) -> Totale Area Servizi progetto → S₄p = 1,050.00 m² > Area Servizi standard S₄s = 787.50 m²
A43: L₁ | B43: edilizia economica e popolare
A44: L₂ | B44: edifici a schiera
A45: L₃ | B45: edifici unifamuliari isolati
A46: L₄ | B46: edifici connessi alla residenza (negozi, bar, studi etc….)
A47: S₁ | B47: edifici per l’istruzione (asili nido, scuole materne e scuole dell’obbligo)
A48: S₂ | B48: edifici d' interesse comune (edifici di culto, ambulatori, uffici PT. protezione civile, ecc.)
A49: S₃ | B49: Aree per spazi pubblici attrezzati a parco e per il gioco e lo sport effettivamente utilizzabili per tali impianti
A50: S₄ | B50: Aree per parcheggi pubblici
A51: S₅ | B51: Area per viabilità
